[Event "MČR v bleskovém šachu družstev 2019"]
[Site "Teplice, Czech Republic"]
[Date "2019.09.14"]
[Round "1.16"]
[White "Hosnedl, Matyas"]
[Black "Sodoma, Jan"]
[Result "1/2-1/2"]
[TimeControl "3 mim. + 2 s"]
[BlackTitle "IM"]
[WhiteFideId "390011"]
[WhiteElo "1852"]
[BlackElo "2193"]

1. e4 {[%clk 00:03:02]} {[%emt 00:00:01]} e5 {[%clk 00:03:03]} {[%emt
00:00:01]} 2. Nf3 {[%clk 00:03:03]} Nc6 {[%clk 00:03:04]} 3. Bb5 {[%clk
00:03:05]} a6 {[%clk 00:03:05]} 4. Ba4 {[%clk 00:03:06]} Nge7 {[%clk 00:03:04]}
{[%emt 00:00:05]} 5. c3 {[%clk 00:03:03]} {[%emt 00:00:04]} g6 {[%clk
00:03:05]} {[%emt 00:00:01]} 6. O-O {[%clk 00:03:00]} {[%emt 00:00:05]} Bg7
{[%clk 00:03:06]} 7. d3 {[%clk 00:02:55]} {[%emt 00:00:07]} O-O {[%clk
00:03:04]} {[%emt 00:00:04]} 8. Nbd2 {[%clk 00:02:52]} {[%emt 00:00:06]} b5
{[%clk 00:02:56]} {[%emt 00:00:10]} 9. Bb3 {[%clk 00:02:51]} {[%emt 00:00:03]}
d5 {[%clk 00:02:57]} {[%emt 00:00:01]} 10. Re1 {[%clk 00:02:36]} {[%emt
00:00:17]} Kh8 {[%clk 00:02:43]} {[%emt 00:00:15]} 11. Nf1 {[%clk 00:02:28]}
{[%emt 00:00:10]} h6 {[%clk 00:02:19]} {[%emt 00:00:27]} 12. Ne3 {[%clk
00:01:54]} {[%emt 00:00:36]} dxe4 {[%clk 00:02:09]} {[%emt 00:00:12]} 13. dxe4
{[%clk 00:01:55]} {[%emt 00:00:02]} Bb7 {[%clk 00:02:09]} 14. Nd5 {[%clk
00:01:45]} {[%emt 00:00:13]} Na5 {[%clk 00:02:03]} {[%emt 00:00:08]} 15. Nxe7
{[%clk 00:01:32]} {[%emt 00:00:15]} Qxe7 {[%clk 00:02:02]} {[%emt 00:00:03]} 16.
Bc2 {[%clk 00:01:32]} {[%emt 00:00:03]} Rad8 {[%clk 00:01:54]} {[%emt
00:00:10]} 17. Qe2 {[%clk 00:01:32]} {[%emt 00:00:02]} Nc4 {[%clk 00:01:55]} 18.
a4 {[%clk 00:01:28]} {[%emt 00:00:07]} Nd6 {[%clk 00:01:24]} {[%emt 00:00:33]}
19. axb5 {[%clk 00:01:11]} {[%emt 00:00:19]} axb5 {[%clk 00:01:25]} {[%emt
00:00:01]} 20. Rd1 {[%clk 00:00:49]} {[%emt 00:00:24]} f5 {[%clk 00:01:14]}
{[%emt 00:00:13]} 21. exf5 {[%clk 00:00:43]} {[%emt 00:00:08]} gxf5 {[%clk
00:01:14]} {[%emt 00:00:02]} 22. Re1 {[%clk 00:00:41]} {[%emt 00:00:04]} e4
{[%clk 00:01:02]} {[%emt 00:00:14]} 23. Nd4 {[%clk 00:00:38]} {[%emt 00:00:05]}
Qe5 {[%clk 00:00:50]} {[%emt 00:00:13]} 24. g3 {[%clk 00:00:35]} {[%emt
00:00:06]} b4 {[%clk 00:00:41]} {[%emt 00:00:10]} 25. Bf4 {[%clk 00:00:36]}
{[%emt 00:00:02]} Qf6 {[%clk 00:00:39]} {[%emt 00:00:04]} 26. Ra7 {[%clk
00:00:27]} {[%emt 00:00:11]} Ra8 {[%clk 00:00:36]} {[%emt 00:00:05]} 27. Rea1
{[%clk 00:00:17]} {[%emt 00:00:12]} bxc3 {[%clk 00:00:28]} {[%emt 00:00:11]} 28.
bxc3 {[%clk 00:00:18]} {[%emt 00:00:01]} Rxa7 {[%clk 00:00:18]} {[%emt
00:00:12]} 29. Rxa7 {[%clk 00:00:19]} Ra8 {[%clk 00:00:19]} 30. Rxa8+ {[%clk
00:00:18]} {[%emt 00:00:04]} Bxa8 {[%clk 00:00:20]} 31. Qa6 {[%clk 00:00:19]}
{[%emt 00:00:01]} Bd5 {[%clk 00:00:17]} {[%emt 00:00:05]} 32. Qa5 {[%clk
00:00:16]} {[%emt 00:00:06]} Qf7 {[%clk 00:00:17]} {[%emt 00:00:02]} 33. Ba4
{[%clk 00:00:08]} {[%emt 00:00:10]} Nc4 {[%clk 00:00:15]} {[%emt 00:00:05]} 34.
Qc5 {[%clk 00:00:09]} Kh7 {[%clk 00:00:12]} {[%emt 00:00:04]} 35. Qxc7 {[%clk
00:00:10]} Qxc7 {[%clk 00:00:05]} {[%emt 00:00:09]} 36. Bxc7 {[%clk 00:00:11]}
Bxd4 {[%clk 00:00:06]} {[%emt 00:00:01]} 37. cxd4 {[%clk 00:00:12]} {[%emt
00:00:01]} Nb2 {[%clk 00:00:08]} 38. Bd7 {[%clk 00:00:13]} {[%emt 00:00:01]}
Kg6 {[%clk 00:00:09]} 39. Be5 {[%clk 00:00:13]} {[%emt 00:00:01]} Nd3 {[%clk
00:00:00]} {[%emt 00:00:01]} 1/2-1/2

[Event "MČR v bleskovém šachu družstev 2019"]
[Site "Teplice, Czech Republic"]
[Date "2019.09.14"]
[Round "1.21"]
[White "Liska, Jiri"]
[Black "Smid, Pavel"]
[Result "1-0"]
[TimeControl "3 mim. + 2 s"]
[WhiteTitle "FM"]
[BlackFideId "382213"]
[WhiteElo "2241"]
[BlackElo "1816"]

1. e4 {[%clk 00:03:01]} {[%emt 00:00:02]} e5 {[%clk 00:03:02]} {[%emt
00:00:03]} 2. Nf3 {[%clk 00:03:02]} {[%emt 00:00:01]} Nc6 {[%clk 00:03:00]}
{[%emt 00:00:04]} 3. d4 {[%clk 00:03:02]} {[%emt 00:00:02]} exd4 {[%clk
00:02:55]} {[%emt 00:00:08]} 4. Nxd4 {[%clk 00:03:02]} Bb4+ {[%clk 00:02:39]}
{[%emt 00:00:18]} 5. c3 {[%clk 00:02:59]} {[%emt 00:00:05]} Bc5 {[%clk
00:02:40]} {[%emt 00:00:01]} 6. Be3 {[%clk 00:02:59]} {[%emt 00:00:02]} Qf6
{[%clk 00:02:21]} {[%emt 00:00:21]} 7. Be2 {[%clk 00:02:53]} {[%emt 00:00:08]}
Nge7 {[%clk 00:02:02]} {[%emt 00:00:21]} 8. O-O {[%clk 00:02:53]} {[%emt
00:00:01]} O-O {[%clk 00:01:37]} {[%emt 00:00:27]} 9. Qd2 {[%clk 00:02:21]}
{[%emt 00:00:34]} d6 {[%clk 00:01:07]} {[%emt 00:00:33]} 10. Nb5 {[%clk
00:02:21]} {[%emt 00:00:01]} Bxe3 {[%clk 00:00:54]} {[%emt 00:00:15]} 11. Qxe3
{[%clk 00:02:08]} {[%emt 00:00:15]} Be6 {[%clk 00:00:36]} {[%emt 00:00:21]} 12.
Nxc7 {[%clk 00:02:07]} {[%emt 00:00:03]} Rac8 {[%clk 00:00:37]} {[%emt
00:00:01]} 13. Nb5 {[%clk 00:01:53]} {[%emt 00:00:16]} Rfd8 {[%clk 00:00:25]}
{[%emt 00:00:13]} 14. Nxa7 {[%clk 00:01:44]} {[%emt 00:00:12]} Nxa7 {[%clk
00:00:26]} {[%emt 00:00:01]} 15. Qxa7 {[%clk 00:01:45]} {[%emt 00:00:01]} Ng6
{[%clk 00:00:16]} {[%emt 00:00:12]} 16. Nd2 {[%clk 00:01:36]} {[%emt 00:00:11]}
Nf4 {[%clk 00:00:15]} {[%emt 00:00:03]} 17. Qe3 {[%clk 00:01:23]} {[%emt
00:00:14]} Qg5 {[%clk 00:00:05]} {[%emt 00:00:12]} 18. g3 {[%clk 00:01:17]}
{[%emt 00:00:09]} Nh3+ {[%clk 00:00:04]} {[%emt 00:00:03]} 19. Kg2 {[%clk
00:01:14]} {[%emt 00:00:04]} Qg6 {[%clk 00:00:03]} {[%emt 00:00:04]} 20. f4
{[%clk 00:01:04]} {[%emt 00:00:11]} f5 {[%clk 00:00:00]} {[%emt 00:00:04]} 1-0

[Event "MČR v bleskovém šachu družstev 2019"]
[Site "Teplice, Czech Republic"]
[Date "2019.09.14"]
[Round "1.22"]
[White "Chrz, Pavel"]
[Black "Vltavsky, Vladimir"]
[Result "1/2-1/2"]
[TimeControl "3 mim. + 2 s"]
[WhiteTitle "CM"]
[WhiteElo "1899"]
[BlackElo "2252"]

1. e4 {[%clk 00:03:03]} c5 {[%clk 00:03:03]} {[%emt 00:00:01]} 2. d4 cxd4 3. c3
{[%emt 00:00:01]} d5 {[%clk 00:03:03]} 4. exd5 {[%clk 00:03:05]} {[%emt
00:00:03]} Qxd5 {[%emt 00:00:01]} 5. cxd4 {[%emt 00:00:01]} Nc6 {[%clk
00:03:02]} {[%emt 00:00:04]} 6. Nf3 {[%clk 00:03:06]} {[%emt 00:00:02]} e5
{[%clk 00:03:03]} 7. Nc3 {[%clk 00:03:07]} {[%emt 00:00:02]} Bb4 {[%clk
00:03:04]} 8. Be2 {[%clk 00:03:08]} {[%emt 00:00:03]} e4 {[%clk 00:02:56]}
{[%emt 00:00:10]} 9. O-O {[%clk 00:03:04]} {[%emt 00:00:05]} Bxc3 {[%clk
00:02:53]} {[%emt 00:00:05]} 10. bxc3 {[%clk 00:03:05]} {[%emt 00:00:02]} exf3
{[%clk 00:02:51]} {[%emt 00:00:03]} 11. Bxf3 {[%clk 00:03:06]} {[%emt
00:00:01]} Qd8 {[%clk 00:02:44]} {[%emt 00:00:09]} 12. Re1+ {[%clk 00:03:07]}
{[%emt 00:00:02]} Nge7 {[%clk 00:02:45]} 13. d5 {[%clk 00:03:08]} O-O {[%clk
00:02:35]} {[%emt 00:00:12]} 14. Ba3 {[%clk 00:02:33]} {[%emt 00:00:37]} Re8
{[%clk 00:02:16]} {[%emt 00:00:21]} 15. dxc6 {[%clk 00:02:28]} {[%emt
00:00:07]} Nxc6 {[%clk 00:02:15]} {[%emt 00:00:03]} 16. Qa4 {[%clk 00:01:33]}
{[%emt 00:00:57]} Bd7 {[%clk 00:02:11]} {[%emt 00:00:06]} 17. Rad1 {[%clk
00:01:03]} {[%emt 00:00:32]} Rxe1+ {[%clk 00:02:11]} {[%emt 00:00:02]} 18. Rxe1
{[%clk 00:01:01]} {[%emt 00:00:05]} Qg5 {[%clk 00:02:11]} 19. Qe4 {[%clk
00:00:45]} {[%emt 00:00:17]} h6 {[%clk 00:02:03]} {[%emt 00:00:11]} 20. h4
{[%clk 00:00:45]} {[%emt 00:00:02]} Qf5 {[%clk 00:02:01]} {[%emt 00:00:04]} 21.
Qxf5 {[%clk 00:00:42]} {[%emt 00:00:05]} Bxf5 {[%clk 00:02:02]} 22. Bxc6 {[%clk
00:00:32]} {[%emt 00:00:13]} bxc6 {[%clk 00:02:02]} {[%emt 00:00:01]} 23. Re7
{[%clk 00:00:30]} {[%emt 00:00:03]} Be6 {[%clk 00:01:49]} {[%emt 00:00:15]} 24.
Bc5 {[%clk 00:00:27]} {[%emt 00:00:05]} a5 {[%clk 00:01:42]} {[%emt 00:00:09]}
25. a3 {[%clk 00:00:23]} {[%emt 00:00:07]} a4 {[%clk 00:01:30]} {[%emt
00:00:14]} 26. Rc7 {[%clk 00:00:24]} {[%emt 00:00:01]} Bd5 {[%clk 00:01:29]}
{[%emt 00:00:03]} 27. Ra7 {[%clk 00:00:22]} {[%emt 00:00:04]} Rxa7 {[%clk
00:01:18]} {[%emt 00:00:13]} 28. Bxa7 {[%clk 00:00:23]} Kf8 {[%clk 00:01:18]}
{[%emt 00:00:03]} 29. Bc5+ {[%clk 00:00:19]} {[%emt 00:00:06]} Ke8 {[%clk
00:01:19]} {[%emt 00:00:01]} 30. f3 {[%clk 00:00:19]} {[%emt 00:00:02]} Kd7
{[%clk 00:01:20]} 31. Bf8 {[%clk 00:00:21]} g6 {[%clk 00:01:15]} {[%emt
00:00:07]} 32. Bxh6 {[%clk 00:00:21]} {[%emt 00:00:02]} Kd6 {[%clk 00:01:15]}
{[%emt 00:00:02]} 33. Be3 {[%clk 00:00:21]} {[%emt 00:00:03]} Ke5 {[%clk
00:01:11]} {[%emt 00:00:05]} 34. Kf2 {[%clk 00:00:21]} {[%emt 00:00:02]} f5
{[%clk 00:01:12]} 35. g3 {[%clk 00:00:22]} {[%emt 00:00:01]} Bf7 {[%clk
00:01:10]} {[%emt 00:00:04]} 36. g4 {[%clk 00:00:23]} {[%emt 00:00:01]} fxg4
{[%clk 00:01:11]} {[%emt 00:00:02]} 37. fxg4 {[%clk 00:00:24]} Be8 {[%clk
00:01:11]} {[%emt 00:00:02]} 38. Kf3 {[%clk 00:00:24]} {[%emt 00:00:02]} Bf7
{[%clk 00:01:11]} {[%emt 00:00:02]} 39. Bc5 {[%clk 00:00:19]} {[%emt 00:00:06]}
Bd5+ {[%clk 00:01:11]} {[%emt 00:00:03]} 40. Ke3 {[%clk 00:00:21]} {[%emt
00:00:01]} Be6 {[%clk 00:01:12]} 41. h5 {[%clk 00:00:15]} {[%emt 00:00:08]}
gxh5 {[%clk 00:01:10]} {[%emt 00:00:04]} 42. gxh5 {[%clk 00:00:17]} Bf5 {[%clk
00:01:09]} {[%emt 00:00:04]} 43. h6 {[%clk 00:00:18]} {[%emt 00:00:01]} Kd5
{[%clk 00:01:09]} {[%emt 00:00:02]} 44. Kf4 {[%clk 00:00:18]} {[%emt 00:00:02]}
Bh7 {[%clk 00:01:08]} {[%emt 00:00:02]} 45. Bf8 {[%clk 00:00:14]} {[%emt
00:00:06]} Kc4 {[%clk 00:01:09]} 46. Bg7 {[%clk 00:00:13]} {[%emt 00:00:03]}
Kb3 {[%clk 00:01:10]} 47. Bf8 {[%clk 00:00:12]} {[%emt 00:00:04]} Kxc3 {[%clk
00:01:10]} {[%emt 00:00:02]} 48. Ke5 {[%clk 00:00:13]} Kc4 {[%clk 00:01:03]}
{[%emt 00:00:10]} 49. Kd6 {[%clk 00:00:12]} {[%emt 00:00:02]} Kb5 {[%clk
00:00:55]} {[%emt 00:00:11]} 50. Kc7 {[%clk 00:00:11]} {[%emt 00:00:03]} c5
{[%clk 00:00:56]} 51. Kd6 {[%clk 00:00:10]} {[%emt 00:00:02]} c4 {[%clk
00:00:54]} {[%emt 00:00:05]} 52. Bg7 {[%clk 00:00:08]} {[%emt 00:00:03]} c3
{[%clk 00:00:45]} {[%emt 00:00:11]} 53. Bxc3 {[%clk 00:00:09]} {[%emt
00:00:02]} Kc4 {[%clk 00:00:47]} 54. Bb4 {[%clk 00:00:07]} {[%emt 00:00:04]}
Kb5 {[%clk 00:00:44]} {[%emt 00:00:04]} 55. Ke5 {[%clk 00:00:08]} {[%emt
00:00:01]} Ka6 {[%clk 00:00:45]} {[%emt 00:00:02]} 56. Kf6 {[%clk 00:00:09]}
Kb5 {[%clk 00:00:46]} {[%emt 00:00:02]} 57. Kg7 {[%clk 00:00:11]} Bb1 {[%clk
00:00:47]} {[%emt 00:00:01]} 58. h7 {[%clk 00:00:12]} Bxh7 {[%clk 00:00:47]}
{[%emt 00:00:03]} 59. Kxh7 {[%clk 00:00:12]} {[%emt 00:00:02]} Ka6 {[%clk
00:00:48]} 60. Kg7 {[%clk 00:00:12]} {[%emt 00:00:03]} Kb7 {[%clk 00:00:49]}
{[%emt 00:00:01]} 1/2-1/2

[Event "MČR v bleskovém šachu družstev 2019"]
[Site "Teplice, Czech Republic"]
[Date "2019.09.14"]
[Round "1.23"]
[White "Marsalek, Zdenek"]
[Black "Balin, Danniel"]
[Result "1-0"]
[TimeControl "3 mim. + 2 s"]
[BlackFideId "380954"]
[WhiteElo "2272"]
[BlackElo "1834"]

1. d4 {[%clk 00:03:02]} {[%emt 01:45:12]} c5 {[%clk 00:03:02]} {[%emt
00:00:05]} 2. dxc5 {[%clk 00:03:02]} {[%emt 00:00:03]} e5 {[%clk 00:02:58]}
{[%emt 00:00:05]} 3. Nc3 {[%clk 00:03:02]} {[%emt 00:00:02]} Bxc5 {[%clk
00:02:59]} {[%emt 00:00:02]} 4. Ne4 {[%clk 00:03:02]} {[%emt 00:00:01]} Qc7
{[%clk 00:02:20]} {[%emt 00:00:41]} 5. Nxc5 {[%clk 00:02:59]} {[%emt 00:00:06]}
Qxc5 {[%clk 00:02:20]} {[%emt 00:00:02]} 6. e4 {[%clk 00:02:54]} {[%emt
00:00:06]} Nf6 {[%clk 00:02:16]} {[%emt 00:00:07]} 7. Bd3 {[%clk 00:02:54]}
{[%emt 00:00:01]} O-O {[%clk 00:02:14]} {[%emt 00:00:05]} 8. a3 {[%clk
00:02:40]} {[%emt 00:00:16]} Nc6 {[%clk 00:02:03]} {[%emt 00:00:13]} 9. Be3
{[%clk 00:02:37]} {[%emt 00:00:05]} Qa5+ {[%clk 00:01:16]} {[%emt 00:00:49]} 10.
b4 {[%clk 00:02:31]} {[%emt 00:00:08]} Qc7 {[%clk 00:01:17]} {[%emt 00:00:01]}
11. c4 {[%clk 00:02:23]} {[%emt 00:00:09]} d6 {[%clk 00:01:08]} {[%emt
00:00:12]} 12. f3 {[%clk 00:02:20]} {[%emt 00:00:05]} Be6 {[%clk 00:01:07]}
{[%emt 00:00:03]} 13. Ne2 {[%clk 00:02:18]} {[%emt 00:00:04]} Rac8 {[%clk
00:01:01]} {[%emt 00:00:07]} 14. O-O {[%clk 00:02:15]} {[%emt 00:00:05]} Nd4
{[%clk 00:00:43]} {[%emt 00:00:21]} 15. Nxd4 {[%clk 00:02:08]} {[%emt
00:00:09]} exd4 {[%clk 00:00:43]} {[%emt 00:00:02]} 16. Bxd4 {[%clk 00:02:05]}
{[%emt 00:00:04]} Bxc4 {[%clk 00:00:43]} {[%emt 00:00:03]} 17. Bxf6 {[%clk
00:02:01]} {[%emt 00:00:06]} Bxd3 {[%clk 00:00:37]} {[%emt 00:00:08]} 18. Qxd3
{[%clk 00:01:54]} {[%emt 00:00:09]} gxf6 {[%clk 00:00:36]} {[%emt 00:00:02]} 19.
Rfd1 {[%clk 00:01:54]} {[%emt 00:00:03]} Qb6+ {[%clk 00:00:31]} {[%emt
00:00:07]} 20. Kh1 {[%clk 00:01:43]} {[%emt 00:00:13]} Rfd8 {[%clk 00:00:17]}
{[%emt 00:00:16]} 21. Rd2 {[%clk 00:01:39]} {[%emt 00:00:06]} a5 {[%clk
00:00:14]} {[%emt 00:00:05]} 22. bxa5 {[%clk 00:01:24]} {[%emt 00:00:16]} Qxa5
{[%clk 00:00:15]} {[%emt 00:00:01]} 23. h3 {[%clk 00:01:24]} {[%emt 00:00:03]}
Rc3 {[%clk 00:00:15]} {[%emt 00:00:02]} 24. Qd4 {[%clk 00:01:19]} {[%emt
00:00:07]} Rxa3 {[%clk 00:00:14]} {[%emt 00:00:03]} 25. Rb1 {[%clk 00:01:14]}
{[%emt 00:00:07]} Ra4 {[%clk 00:00:08]} {[%emt 00:00:08]} 26. Qf2 {[%clk
00:01:11]} {[%emt 00:00:04]} d5 {[%clk 00:00:05]} {[%emt 00:00:06]} 27. Rbd1
{[%clk 00:01:00]} {[%emt 00:00:12]} d4 {[%clk 00:00:04]} {[%emt 00:00:03]} 28.
Qg3+ {[%clk 00:00:51]} {[%emt 00:00:12]} Kh8 {[%clk 00:00:04]} {[%emt
00:00:02]} 29. Qh4 {[%clk 00:00:46]} {[%emt 00:00:07]} Qe5 {[%clk 00:00:04]}
{[%emt 00:00:02]} 30. Rd3 {[%clk 00:00:40]} {[%emt 00:00:08]} Rc4 {[%clk
00:00:05]} {[%emt 00:00:02]} 31. Qe1 {[%clk 00:00:38]} {[%emt 00:00:03]} b5
{[%clk 00:00:05]} {[%emt 00:00:02]} 32. Rb3 {[%clk 00:00:37]} {[%emt 00:00:02]}
Qc5 {[%clk 00:00:04]} {[%emt 00:00:03]} 33. Rdb1 {[%clk 00:00:35]} {[%emt
00:00:05]} Rb8 {[%clk 00:00:04]} {[%emt 00:00:02]} 34. Qh4 {[%clk 00:00:33]}
{[%emt 00:00:03]} Qc6 {[%clk 00:00:05]} {[%emt 00:00:02]} 35. Qf4 {[%clk
00:00:32]} {[%emt 00:00:03]} Rc3 {[%clk 00:00:04]} {[%emt 00:00:03]} 36. Qxb8+
{[%clk 00:00:31]} {[%emt 00:00:03]} Kg7 {[%clk 00:00:04]} {[%emt 00:00:02]} 37.
Qg3+ {[%clk 00:00:26]} {[%emt 00:00:07]} Kh8 {[%clk 00:00:05]} {[%emt
00:00:02]} 38. Rxb5 {[%clk 00:00:25]} {[%emt 00:00:02]} Rc1+ {[%clk 00:00:05]}
{[%emt 00:00:01]} 39. Rxc1 {[%clk 00:00:23]} {[%emt 00:00:05]} Qxc1+ {[%clk
00:00:01]} {[%emt 00:00:01]} 40. Kh2 1-0

[Event "MČR v bleskovém šachu družstev 2019"]
[Site "Teplice, Czech Republic"]
[Date "2019.09.14"]
[Round "1.24"]
[White "Balin, Kamil"]
[Black "Duran, Tomas"]
[Result "1/2-1/2"]
[TimeControl "3 mim. + 2 s"]
[WhiteFideId "313785"]
[WhiteElo "2092"]
[BlackElo "2135"]

1. d4 {[%clk 00:03:02]} {[%emt 00:00:02]} d6 {[%clk 00:03:02]} {[%emt
00:00:02]} 2. c4 {[%clk 00:02:55]} {[%emt 00:00:09]} Nf6 {[%clk 00:03:01]}
{[%emt 00:00:03]} 3. Nc3 {[%clk 00:02:55]} {[%emt 00:00:02]} g6 {[%clk
00:03:02]} 4. e4 {[%clk 00:02:56]} Bg7 {[%clk 00:03:04]} {[%emt 00:00:01]} 5.
Nf3 {[%clk 00:02:57]} O-O {[%clk 00:03:03]} {[%emt 00:00:02]} 6. Be2 {[%clk
00:02:57]} {[%emt 00:00:02]} c6 {[%clk 00:03:03]} {[%emt 00:00:02]} 7. O-O
{[%clk 00:02:56]} {[%emt 00:00:02]} Qc7 {[%clk 00:03:02]} {[%emt 00:00:04]} 8.
d5 {[%clk 00:02:45]} {[%emt 00:00:14]} a5 {[%clk 00:02:48]} {[%emt 00:00:16]} 9.
Be3 {[%clk 00:02:32]} {[%emt 00:00:15]} Ng4 {[%clk 00:02:43]} {[%emt 00:00:07]}
10. Bd4 {[%clk 00:02:25]} {[%emt 00:00:08]} Ne5 {[%clk 00:01:47]} {[%emt
00:00:58]} 11. Nxe5 {[%clk 00:02:19]} {[%emt 00:00:08]} dxe5 {[%clk 00:01:48]}
{[%emt 00:00:01]} 12. Be3 {[%clk 00:02:12]} {[%emt 00:00:09]} f5 {[%clk
00:01:30]} {[%emt 00:00:20]} 13. exf5 {[%clk 00:01:43]} {[%emt 00:00:30]} gxf5
{[%clk 00:01:30]} {[%emt 00:00:03]} 14. f4 {[%clk 00:01:37]} {[%emt 00:00:08]}
e6 {[%clk 00:01:01]} {[%emt 00:00:31]} 15. d6 {[%clk 00:01:29]} {[%emt
00:00:10]} Qd8 {[%clk 00:00:45]} {[%emt 00:00:18]} 16. c5 {[%clk 00:01:21]}
{[%emt 00:00:10]} Nd7 {[%clk 00:00:26]} {[%emt 00:00:21]} 17. Na4 {[%clk
00:01:12]} {[%emt 00:00:11]} exf4 {[%clk 00:00:18]} {[%emt 00:00:11]} 18. Bxf4
{[%clk 00:01:11]} {[%emt 00:00:03]} b6 {[%clk 00:00:11]} {[%emt 00:00:09]} 19.
cxb6 {[%clk 00:00:54]} {[%emt 00:00:18]} Nxb6 {[%clk 00:00:12]} 20. Nc5 {[%clk
00:00:40]} {[%emt 00:00:16]} e5 {[%clk 00:00:12]} {[%emt 00:00:03]} 21. Be3
{[%clk 00:00:35]} {[%emt 00:00:06]} Nd5 {[%clk 00:00:13]} {[%emt 00:00:01]} 22.
Bc4 {[%clk 00:00:31]} {[%emt 00:00:06]} Kh8 {[%clk 00:00:13]} {[%emt 00:00:02]}
23. Bxd5 {[%clk 00:00:30]} {[%emt 00:00:03]} cxd5 {[%clk 00:00:14]} {[%emt
00:00:01]} 24. Qxd5 {[%clk 00:00:30]} {[%emt 00:00:03]} Rb8 {[%clk 00:00:13]}
{[%emt 00:00:03]} 25. d7 {[%clk 00:00:26]} {[%emt 00:00:06]} Rb5 {[%clk
00:00:09]} {[%emt 00:00:06]} 26. Qc6 {[%clk 00:00:23]} {[%emt 00:00:04]} Rb6
{[%clk 00:00:06]} {[%emt 00:00:05]} 27. Qxc8 {[%clk 00:00:20]} {[%emt
00:00:05]} Qxc8 {[%clk 00:00:07]} 28. dxc8=Q {[%clk 00:00:20]} {[%emt
00:00:01]} Rxc8 {[%clk 00:00:09]} 29. Rfd1 {[%clk 00:00:19]} {[%emt 00:00:05]}
Rxb2 {[%clk 00:00:09]} {[%emt 00:00:02]} 30. Ne6 {[%clk 00:00:19]} {[%emt
00:00:02]} Bf6 {[%clk 00:00:09]} {[%emt 00:00:02]} 31. Rab1 {[%clk 00:00:18]}
{[%emt 00:00:02]} Rbc2 {[%clk 00:00:10]} {[%emt 00:00:01]} 32. Rbc1 {[%clk
00:00:19]} {[%emt 00:00:02]} Rxc1 {[%clk 00:00:10]} {[%emt 00:00:01]} 33. Rxc1
{[%clk 00:00:20]} Rxc1+ {[%clk 00:00:11]} 34. Bxc1 {[%clk 00:00:21]} Kg8 {[%clk
00:00:13]} 35. Nc5 {[%clk 00:00:18]} {[%emt 00:00:04]} e4 {[%clk 00:00:13]}
{[%emt 00:00:02]} 36. Nb3 {[%clk 00:00:20]} {[%emt 00:00:01]} a4 {[%clk
00:00:14]} 37. Nd2 {[%clk 00:00:19]} {[%emt 00:00:03]} Kf7 {[%clk 00:00:15]}
{[%emt 00:00:02]} 38. Kf2 {[%clk 00:00:19]} {[%emt 00:00:01]} Bd4+ {[%clk
00:00:16]} 39. Ke2 {[%clk 00:00:21]} Ke6 {[%clk 00:00:18]} 40. Nc4 {[%clk
00:00:21]} {[%emt 00:00:02]} Kd7 {[%clk 00:00:18]} {[%emt 00:00:02]} 41. Ne3
{[%clk 00:00:22]} {[%emt 00:00:01]} Ke6 {[%clk 00:00:19]} {[%emt 00:00:01]} 42.
h3 {[%clk 00:00:22]} {[%emt 00:00:01]} f4 {[%clk 00:00:20]} 43. Nc2 {[%clk
00:00:21]} {[%emt 00:00:03]} Be5 {[%clk 00:00:20]} {[%emt 00:00:02]} 44. Nb4
{[%clk 00:00:18]} {[%emt 00:00:05]} Kd6 {[%clk 00:00:21]} 45. a3 {[%clk
00:00:19]} {[%emt 00:00:02]} Kc5 {[%clk 00:00:22]} 46. Kd2 {[%clk 00:00:18]}
{[%emt 00:00:02]} Kc4 {[%clk 00:00:23]} {[%emt 00:00:01]} 47. Kc2 {[%clk
00:00:19]} e3 {[%clk 00:00:24]} {[%emt 00:00:01]} 48. Nd3 {[%clk 00:00:19]}
{[%emt 00:00:02]} Bd6 {[%clk 00:00:25]} {[%emt 00:00:02]} 49. g3 {[%clk
00:00:17]} {[%emt 00:00:03]} fxg3 {[%clk 00:00:25]} {[%emt 00:00:02]} 50. Bxe3
{[%clk 00:00:19]} g2 {[%clk 00:00:26]} {[%emt 00:00:01]} 51. Ne1 {[%clk
00:00:16]} {[%emt 00:00:05]} Bxa3 {[%clk 00:00:27]} 52. Nxg2 {[%clk 00:00:17]}
Bd6 {[%clk 00:00:27]} {[%emt 00:00:01]} 53. Bc1 {[%clk 00:00:16]} {[%emt
00:00:03]} Kd4 {[%emt 00:00:02]} 54. Ne1 {[%clk 00:00:17]} Ke4 {[%clk
00:00:29]} {[%emt 00:00:02]} 55. Nd3 {[%clk 00:00:17]} Kf3 {[%clk 00:00:30]}
{[%emt 00:00:02]} 56. h4 {[%clk 00:00:14]} {[%emt 00:00:05]} Kg4 {[%clk
00:00:31]} 57. Bg5 {[%clk 00:00:14]} {[%emt 00:00:02]} h6 {[%clk 00:00:32]}
{[%emt 00:00:01]} 58. Bxh6 {[%clk 00:00:14]} {[%emt 00:00:01]} Kxh4 {[%clk
00:00:33]} 59. Bg7 {[%clk 00:00:15]} Kg4 {[%clk 00:00:33]} {[%emt 00:00:02]} 60.
Kb2 {[%clk 00:00:16]} Kf3 {[%clk 00:00:34]} {[%emt 00:00:02]} 61. Ka2 {[%clk
00:00:15]} {[%emt 00:00:02]} Ke4 {[%clk 00:00:35]} 62. Nb2 {[%clk 00:00:16]}
{[%emt 00:00:01]} Be5 {[%clk 00:00:34]} {[%emt 00:00:03]} 63. Bxe5 {[%clk
00:00:15]} {[%emt 00:00:03]} Kxe5 {[%emt 00:00:06]} 1/2-1/2